bitfinex-derivatives/quotes_SOLF0:USTF0_20260311
["timestamp","ask_amount","ask_price","bid_price","bid_amount"]
[1773198477418,6.80624309,85.754,85.73,2.61029287]
[1773198477618,6.80624309,85.753,85.73,2.61029287]
[1773198477921,6.80624309,85.752,85.73,2.61029287]
[1773198478116,6.80624309,85.751,85.73,2.61029287]
[1773198478424,6.80624309,85.75,85.73,2.61029287]
[1773198478622,6.80624309,85.749,85.73,2.61029287]
[1773198478824,4.00649869,85.762,85.73,2.61029287]
[1773198479026,6.66054784,85.761,85.73,2.61029287]
[1773198479224,6.66054784,85.76,85.73,2.61029287]
[1773198479425,6.66054784,85.759,85.73,2.61029287]
[1773198479621,6.66054784,85.758,85.73,2.61029287]
[1773198479817,6.66054784,85.757,85.73,2.61029287]
[1773198480023,6.66054784,85.756,85.73,2.61029287]
[1773198480222,6.66054784,85.755,85.73,2.61029287]
[1773198480517,6.66054784,85.754,85.73,2.61029287]
[1773198480722,4.00649869,85.779,85.74,2.61029287]
[1773198480923,4.00649869,85.777,85.74,2.61029287]
[1773198481113,4.00649869,85.775,85.74,2.61029287]
[1773198481318,4.00649869,85.773,85.74,2.61029287]
[1773198481519,4.00649869,85.771,85.74,2.61029287]
[1773198481713,4.00649869,85.769,85.74,2.61029287]
[1773198481915,4.00649869,85.769,85.731,3.10410277]
[1773198481916,2.61029287,85.75,85.695,21.79278717]
[1773198482221,6.65740555,85.749,85.71,2.61029287]
[1773198482422,6.65740555,85.748,85.73,2.61029287]
[1773198482727,6.65740555,85.747,85.73,2.61029287]
[1773198482927,10.493,85.762,85.73,2.61029287]
[1773198483232,6.67429393,85.761,85.73,2.61029287]
[1773198483425,6.67429393,85.76,85.73,2.61029287]
[1773198483627,6.67429393,85.759,85.73,2.61029287]
[1773198483826,6.67429393,85.758,85.724,8.23191647]
[1773198484023,6.67429393,85.757,85.73,2.61029287]
[1773198484224,6.67429393,85.756,85.73,2.61029287]
[1773198484527,6.67429393,85.755,85.73,2.61029287]
[1773198484721,6.67429393,85.754,85.73,2.61029287]
[1773198484920,6.67429393,85.753,85.73,2.61029287]
[1773198485128,6.67429393,85.752,85.73,2.61029287]
[1773198485423,6.67429393,85.751,85.73,2.61029287]
[1773198485730,10.493,85.766,85.73,2.61029287]
[1773198485929,6.67526202,85.765,85.73,2.61029287]
[1773198486125,6.67526202,85.764,85.73,2.61029287]
[1773198486322,6.67526202,85.763,85.73,2.61029287]
[1773198486622,6.67526202,85.762,85.73,2.61029287]
[1773198486823,6.67526202,85.761,85.73,2.61029287]
[1773198487020,6.67526202,85.76,85.73,2.61029287]
[1773198487220,6.67526202,85.759,85.74,2.61029287]
[1773198487418,6.67526202,85.758,85.74,2.61029287]
[1773198487622,6.67526202,85.757,85.731,8.2103527]
[1773198487830,6.67526202,85.756,85.74,2.61029287]
[1773198488131,10.492,85.774,85.74,2.61029287]
[1773198488331,6.67673216,85.773,85.74,2.61029287]
[1773198488530,6.67673216,85.772,85.74,2.61029287]
[1773198488829,6.67673216,85.771,85.741,8.21053973]
[1773198489031,2.61029287,85.81,85.76,2.61029287]
[1773198489230,8.66692358,85.809,85.751,8.21053973]
[1773198489430,8.66692358,85.808,85.76,2.61029287]
[1773198489732,8.66692358,85.807,85.76,2.61029287]
[1773198489931,8.66692358,85.806,85.76,2.61029287]
[1773198490133,8.66692358,85.805,85.76,2.61029287]
[1773198490336,10.488,85.801,85.76,2.61029287]
[1773198490632,8.66692358,85.8,85.76,2.61029287]
[1773198490832,8.66692358,85.799,85.76,2.61029287]
[1773198491022,10.488,85.801,85.76,2.61029287]
[1773198491224,8.66005258,85.8,85.76,2.61029287]
[1773198491425,10.488,85.801,85.76,2.61029287]
[1773198491630,8.65759742,85.8,85.77,2.61029287]
[1773198491835,10.487,85.81,85.77,2.61029287]
[1773198492129,8.65785548,85.809,85.77,2.61029287]
[1773198492334,8.65785548,85.808,85.77,2.61029287]
[1773198492636,8.65785548,85.807,85.77,2.61029287]
[1773198492833,10.488,85.804,85.761,8.2039973]
[1773198495532,2.61029287,85.81,85.728,8.16761568]
[1773198495733,2.61029287,85.78,85.731,8.16761568]
[1773198496038,2.61029287,85.79,85.741,8.16761568]
[1773198496637,10.49,85.789,85.741,8.16761568]
[1773198497730,10.491,85.782,85.741,8.16761568]
[1773198498237,2.61029287,85.79,85.741,8.16761568]
[1773198499346,10.492,85.772,85.741,8.16761568]
[1773198501038,2.61029287,85.78,85.741,8.16761568]
[1773198501346,2.91333136,85.779,85.741,8.16761568]
[1773198501546,2.91333136,85.778,85.741,8.16761568]
[1773198501736,2.91333136,85.777,85.741,8.16761568]
[1773198501940,10.49,85.789,85.751,8.24478987]
[1773198502138,2.91303653,85.788,85.751,8.24478987]
[1773198502347,2.91303653,85.787,85.751,8.24478987]
[1773198502547,2.91303653,85.786,85.751,8.24478987]
[1773198502743,2.91303653,85.785,85.751,8.24478987]
[1773198502945,2.91303653,85.784,85.751,8.24478987]
[1773198503246,2.91303653,85.783,85.751,8.24478987]
[1773198503449,2.91303653,85.782,85.751,8.24478987]
[1773198503647,10.49,85.787,85.751,8.24478987]
[1773198503848,2.91323199,85.786,85.751,8.24478987]
[1773198504042,2.91323199,85.785,85.751,8.24478987]
[1773198504240,10.489,85.793,85.751,8.24478987]
[1773198504441,2.91303235,85.792,85.751,8.24478987]
[1773198504649,2.91303235,85.791,85.751,8.24478987]
[1773198504850,2.91303235,85.79,85.751,8.24478987]
[1773198505045,2.91303235,85.789,85.751,8.24478987]
[1773198505246,2.91303235,85.788,85.751,8.24478987]
[1773198505446,2.91303235,85.787,85.751,8.24478987]
[1773198505642,10.489,85.793,85.751,8.24478987]
[1773198505949,10.49,85.791,85.751,8.24478987]
[1773198506152,2.91303117,85.79,85.751,8.24478987]
[1773198506455,10.489,85.8,85.761,8.23079373]
[1773198506646,2.91260708,85.799,85.761,8.23079373]
[1773198506846,10.489,85.8,85.761,8.23079373]
[1773198507046,2.91260691,85.799,85.761,8.23079373]
[1773198507344,10.489,85.8,85.761,8.23079373]
[1773198507545,2.91260683,85.799,85.761,8.23079373]
[1773198507745,10.489,85.8,85.761,8.23079373]
[1773198508053,2.91260666,85.799,85.761,8.23079373]
[1773198508355,10.489,85.8,85.761,8.23079373]
[1773198509455,10.78253203,85.852,85.781,8.24252799]
[1773198509650,2.91213215,85.829,85.781,8.24252799]
[1773198509954,10.486,85.819,85.781,8.24252799]
[1773198510550,10.485,85.827,85.781,8.24252799]
[1773198510753,2.91193283,85.826,85.781,8.24252799]
[1773198510952,2.91193283,85.825,85.781,8.24252799]
[1773198511151,2.91193283,85.824,85.781,8.24252799]
[1773198511354,2.91193283,85.823,85.781,8.24252799]
[1773198511552,2.91193283,85.822,85.781,8.24252799]
[1773198511753,286.68009623,85.83,85.781,8.24252799]
[1773198511947,2.91193248,85.829,85.781,8.24252799]
[1773198512147,10.487,85.815,85.781,8.24252799]
[1773198514157,10.486,85.823,85.781,8.24252799]
[1773198515355,10.486,85.821,85.781,8.24252799]
[1773198516349,286.68009623,85.83,85.764,8.20687049]
[1773198516554,286.68009623,85.83,85.741,8.20687049]
[1773198516555,2.61029287,85.79,85.741,8.20687049]
[1773198517149,2.61029287,85.78,85.741,8.20687049]
[1773198517353,2.61029287,85.79,85.741,8.20687049]
[1773198517549,2.91319048,85.789,85.741,8.20687049]
[1773198517756,2.61029287,85.78,85.741,8.20687049]
[1773198518554,8.79048315,85.816,85.741,8.20687049]
[1773198518748,2.61029287,85.78,85.741,8.20687049]
[1773198520454,10.491,85.779,85.741,8.20687049]
[1773198520955,2.61029287,85.77,85.741,8.20687049]
[1773198521864,10.491,85.779,85.741,8.20687049]
[1773198524657,2.60944761,85.77,85.741,8.20687049]
[1773198526761,2.60944761,85.79,85.751,8.1280698]
[1773198527067,2.91318873,85.789,85.751,8.1280698]
[1773198527274,2.60944761,85.78,85.751,8.1280698]
[1773198527566,2.60944761,85.78,85.73,2.60944761]
[1773198527766,2.60944761,85.78,85.731,8.13807752]
[1773198528368,13.10044761,85.78,85.731,8.13807752]
[1773198531869,2.60944761,85.77,85.731,8.13807752]
[1773198533474,10.492,85.769,85.731,8.13807752]
[1773198542482,2.60944761,85.79,85.741,8.18575892]
[1773198542676,2.91303843,85.789,85.741,8.18575892]
[1773198542872,2.91303843,85.788,85.741,8.18575892]
[1773198543077,2.60944761,85.79,85.741,8.18575892]
[1773198543377,10.49,85.785,85.741,8.18575892]
[1773198546473,2.60944761,85.78,85.741,8.18575892]
[1773198549381,10.49,85.785,85.741,8.18575892]
[1773198550380,10.492,85.774,85.741,8.18575892]
[1773198550784,2.60944761,85.78,85.741,8.18575892]
[1773198552676,10.491,85.781,85.741,8.18575892]
[1773198555379,2.60944761,85.78,85.741,8.18575892]
[1773198559887,10.49,85.789,85.741,8.18575892]
[1773198560188,2.91295002,85.788,85.741,8.18575892]
[1773198560385,2.91295002,85.787,85.741,8.18575892]
[1773198560682,2.91295002,85.786,85.741,8.18575892]
[1773198560989,2.91295002,85.785,85.741,8.18575892]
[1773198561287,2.91295002,85.784,85.741,8.18575892]
[1773198561479,2.91295002,85.783,85.741,8.18575892]
[1773198561685,2.91295002,85.782,85.741,8.18575892]
[1773198561885,2.91295002,85.781,85.741,8.18575892]
[1773198562082,2.91295002,85.78,85.741,8.18575892]
[1773198562286,2.91295002,85.779,85.741,8.18575892]
[1773198562588,2.91295002,85.778,85.741,8.18575892]
[1773198562790,2.91295002,85.777,85.741,8.18575892]
[1773198562991,2.91295002,85.776,85.741,8.18575892]
[1773198563182,10.49,85.789,85.741,8.18575892]
[1773198563382,10.49,85.787,85.741,8.18575892]
[1773198563685,2.912949,85.786,85.741,8.18575892]
[1773198563883,2.912949,85.785,85.741,8.18575892]
[1773198564183,2.912949,85.784,85.741,8.18575892]
[1773198564385,2.912949,85.783,85.741,8.18575892]
[1773198564593,2.912949,85.782,85.741,8.18575892]
[1773198564891,2.912949,85.781,85.741,8.18575892]
[1773198565191,2.912949,85.78,85.741,8.18575892]
[1773198565391,2.912949,85.779,85.741,8.18575892]
[1773198565693,2.912949,85.778,85.741,8.18575892]
[1773198565892,10.49,85.787,85.741,8.18575892]
[1773198565893,2.912949,85.777,85.741,8.18575892]
[1773198566092,2.912949,85.776,85.741,8.18575892]
[1773198566293,10.49,85.787,85.741,8.18575892]
[1773198566496,2.91294865,85.786,85.741,8.18575892]
[1773198566794,2.60944761,85.77,85.741,8.18575892]
[1773198566999,2.60944761,85.77,85.721,8.20926397]
[1773198567295,2.60944761,85.76,85.721,8.20926397]
[1773198567593,2.91323746,85.759,85.721,8.20926397]
[1773198567789,2.91323746,85.758,85.721,8.20926397]
[1773198567995,2.91323746,85.757,85.721,8.20926397]
[1773198568295,2.60944761,85.76,85.721,8.20926397]
[1773198568491,2.91367634,85.759,85.721,8.20926397]
[1773198568692,2.91367634,85.758,85.721,8.20926397]
[1773198568994,2.60944761,85.76,85.721,8.20926397]
[1773198569195,2.91367512,85.759,85.721,8.20926397]
[1773198569395,2.91367512,85.758,85.721,8.20926397]
[1773198569597,10.493,85.767,85.721,8.20926397]
[1773198569796,2.91367494,85.766,85.721,8.20926397]
[1773198569994,2.91367494,85.765,85.721,8.20926397]
[1773198570194,10.493,85.767,85.721,8.20926397]
[1773198570195,2.91367494,85.764,85.721,8.20926397]
[1773198570394,2.91367494,85.763,85.721,8.20926397]
[1773198570598,2.91367494,85.762,85.721,8.20926397]
[1773198570892,2.91367494,85.761,85.721,8.20926397]
[1773198571092,2.91367494,85.76,85.721,8.20926397]
[1773198571288,2.91367494,85.759,85.721,8.20926397]
[1773198571491,2.60944761,85.77,85.721,8.20926397]
[1773198571690,2.9136746,85.769,85.721,8.20926397]
[1773198571900,2.9136746,85.768,85.721,8.20926397]
[1773198572191,2.9136746,85.767,85.721,8.20926397]
[1773198572394,2.9136746,85.766,85.721,8.20926397]
[1773198572598,2.9136746,85.765,85.721,8.20926397]
[1773198572800,2.9136746,85.764,85.723,8.21249444]
[1773198573001,2.9136746,85.763,85.723,8.21249444]
[1773198573199,2.9136746,85.762,85.723,8.21249444]
[1773198573397,2.9136746,85.761,85.723,8.21249444]
[1773198573598,2.9136746,85.76,85.723,8.21249444]
[1773198573798,2.60944761,85.77,85.723,8.21249444]
[1773198574000,2.91367427,85.769,85.723,8.21249444]
[1773198574195,2.91367427,85.768,85.723,8.21249444]
[1773198574395,2.91367427,85.767,85.723,8.21249444]
[1773198574698,2.91367427,85.766,85.723,8.21249444]
[1773198574898,2.91367427,85.765,85.723,8.21249444]
[1773198575093,2.91367427,85.764,85.723,8.21249444]
[1773198575293,2.91367427,85.763,85.723,8.21249444]
[1773198575498,2.91367427,85.762,85.723,8.21249444]
[1773198575798,2.60944761,85.77,85.723,8.21249444]
[1773198575799,2.91367427,85.761,85.723,8.21249444]
[1773198576000,2.60944761,85.77,85.723,8.21249444]
[1773198576295,2.91367308,85.769,85.725,8.21855522]
[1773198576500,2.91367308,85.768,85.725,8.21855522]
[1773198576701,2.91367308,85.767,85.725,8.21855522]
[1773198576901,2.91367308,85.766,85.725,8.21855522]
[1773198577097,2.91367308,85.765,85.725,8.21855522]
[1773198577397,2.91367308,85.764,85.725,8.21855522]
[1773198577597,2.91367308,85.763,85.725,8.21855522]
[1773198577797,2.60944761,85.77,85.725,8.21855522]
[1773198578098,2.91363107,85.769,85.725,8.21855522]
[1773198578301,2.91363107,85.768,85.725,8.21855522]
[1773198578501,2.91363107,85.767,85.725,8.21855522]
[1773198578803,2.91363107,85.766,85.725,8.21855522]
[1773198579102,2.91363107,85.765,85.725,8.21855522]
[1773198579303,2.91363107,85.764,85.725,8.21855522]
[1773198579503,2.60944761,85.77,85.725,8.21855522]
[1773198579700,2.91363107,85.769,85.725,8.21855522]
[1773198579900,2.91363107,85.768,85.725,8.21855522]
[1773198580201,2.91363107,85.767,85.725,8.21855522]
[1773198580401,2.91363107,85.766,85.725,8.21855522]
[1773198580601,2.91363107,85.765,85.725,8.21855522]
[1773198580794,2.91363107,85.764,85.725,8.21855522]
[1773198580993,2.60944761,85.77,85.725,8.21855522]
[1773198581204,2.9136309,85.769,85.725,8.21855522]
[1773198581501,2.9136309,85.768,85.725,8.21855522]
[1773198581702,2.9136309,85.767,85.725,8.21855522]
[1773198581904,2.9136309,85.766,85.725,8.21855522]
[1773198582104,2.9136309,85.765,85.725,8.21855522]
[1773198582302,2.9136309,85.764,85.725,8.21855522]
[1773198582502,2.60944761,85.77,85.725,8.21855522]
[1773198582704,2.9136309,85.769,85.725,8.21855522]
[1773198582908,2.9136309,85.768,85.725,8.21855522]
[1773198583102,2.9136309,85.767,85.725,8.21855522]
[1773198583302,2.9136309,85.766,85.725,8.21855522]
[1773198583502,2.60944761,85.77,85.725,8.21855522]
[1773198583702,2.9136309,85.769,85.725,8.21855522]
[1773198583902,2.9136309,85.768,85.725,8.21855522]
[1773198584104,2.9136309,85.767,85.725,8.21855522]
[1773198584306,2.9136309,85.766,85.725,8.21855522]
[1773198584507,2.60944761,85.77,85.725,8.21855522]
[1773198584699,2.91363093,85.769,85.725,8.21855522]
[1773198584903,2.91363093,85.768,85.725,8.21855522]
[1773198585104,2.91363093,85.767,85.725,8.21855522]
[1773198585400,2.91363093,85.766,85.725,8.21855522]
[1773198585603,2.61003975,85.77,85.725,8.21855522]
[1773198585801,2.91363093,85.769,85.725,8.21855522]
[1773198586006,2.91363093,85.768,85.725,8.21855522]
[1773198586206,2.91363093,85.767,85.725,8.21855522]
[1773198586501,2.91363093,85.766,85.725,8.21855522]
[1773198586705,2.61003975,85.77,85.725,8.21855522]
[1773198586902,2.91367261,85.769,85.728,8.21318718]
[1773198587204,2.91367261,85.768,85.728,8.21318718]
[1773198587408,2.91367261,85.767,85.728,8.21318718]
[1773198587608,2.61003975,85.77,85.728,8.21318718]
[1773198587912,2.91362888,85.769,85.728,8.21318718]
[1773198588210,2.91362888,85.768,85.728,8.21318718]
[1773198588409,2.91362888,85.767,85.73,8.21325756]
[1773198588712,10.491,85.784,85.741,8.21325756]
[1773198588912,2.91328639,85.783,85.741,8.21325756]
[1773198589209,2.61003975,85.78,85.741,8.21325756]
[1773198589414,2.91328639,85.779,85.741,8.21325756]
[1773198589608,2.91328639,85.778,85.741,8.21325756]
[1773198589912,2.91328639,85.777,85.741,8.21325756]
[1773198590102,2.91328639,85.776,85.741,8.21325756]
[1773198590302,2.61003975,85.78,85.741,8.21325756]
[1773198590501,2.91333136,85.779,85.741,8.21325756]
[1773198590703,2.91333136,85.778,85.741,8.21325756]
[1773198590905,2.91333136,85.777,85.741,8.21325756]
[1773198591103,2.91333136,85.776,85.741,8.21325756]
[1773198591406,2.61003975,85.78,85.741,8.21325756]
[1773198591407,2.91333136,85.775,85.741,8.21325756]
[1773198591603,2.61003975,85.78,85.741,8.21325756]
[1773198591805,2.91333136,85.779,85.741,8.21325756]
[1773198592013,2.91333136,85.778,85.741,8.21325756]
[1773198592313,2.91333136,85.777,85.741,8.21325756]
[1773198592614,2.91333136,85.776,85.741,8.21325756]
[1773198592806,2.61003975,85.78,85.741,8.21325756]
[1773198592807,2.91333136,85.775,85.741,8.21325756]
[1773198593010,2.61003975,85.78,85.741,8.21325756]
[1773198593211,2.91333136,85.779,85.741,8.21325756]
[1773198593415,2.91333136,85.778,85.741,8.21325756]
[1773198593715,2.91333136,85.777,85.741,8.21325756]
[1773198594010,2.91333136,85.776,85.741,8.21325756]
[1773198594319,2.91333136,85.775,85.741,8.21325756]
[1773198594614,2.91333136,85.774,85.741,8.21325756]
[1773198594815,2.61003975,85.78,85.741,8.21325756]
[1773198595017,2.9133732,85.779,85.741,8.21325756]
[1773198595211,2.9133732,85.778,85.741,8.21325756]
[1773198595413,2.9133732,85.777,85.744,8.19180762]
[1773198595613,2.91328671,85.776,85.744,8.19180762]
[1773198595815,2.61003975,85.8,85.744,8.19180762]
[1773198596011,22.14937005,85.799,85.753,8.19180762]
[1773198596313,2.91303332,85.798,85.77,2.61003975]
[1773198596522,2.61003975,85.84,85.781,8.19180762]
[1773198596719,2.61003975,85.84,85.791,8.19180762]
[1773198597419,10.484,85.839,85.791,8.19180762]
[1773198597921,8.74460996,85.838,85.791,8.19180762]
[1773198598120,8.74460996,85.837,85.791,8.19180762]
[1773198598320,10.484,85.839,85.791,8.19180762]
[1773198598521,8.73883797,85.838,85.791,8.19180762]
[1773198598818,8.73883797,85.837,85.791,8.19180762]
[1773198599021,10.484,85.839,85.791,8.19180762]
[1773198604317,2.61003975,85.84,85.793,8.19887769]
[1773198605126,10.485,85.829,85.793,8.19887769]
[1773198605428,2.61003975,85.83,85.793,8.19887769]
[1773198608628,10.484,85.838,85.793,8.19887769]
[1773198609332,2.61003975,85.83,85.793,8.19887769]
[1773198612935,10.485,85.831,85.793,8.19887769]
[1773198613131,10.484,85.841,85.801,8.20096109]
[1773198615536,10.484,85.839,85.801,8.20096109]
[1773198616332,10.483,85.847,85.802,8.2068054]
[1773198616730,2.61003975,85.85,85.802,8.2068054]
[1773198616928,2.61003975,85.84,85.802,8.2068054]
[1773198619730,10.484,85.841,85.743,34.98]
[1773198619731,2.61003975,85.83,85.791,8.20657713]
[1773198620138,10.484,85.833,85.791,8.20657713]
[1773198621330,10.484,85.833,85.792,8.2245998]
[1773198622227,2.61003975,85.82,85.792,8.2245998]
[1773198622933,10.485,85.827,85.792,8.2245998]
[1773198624632,2.61003975,85.81,85.773,8.21449276]
[1773198626336,10.488,85.808,85.773,8.21449276]
[1773198630239,2.61003975,85.81,85.773,8.21449276]
[1773198630444,8.70517985,85.846,85.773,8.21449276]
[1773198630637,2.91221763,85.845,85.79,2.61003975]
[1773198630836,10.484,85.836,85.791,8.22749408]
[1773198631236,2.91159002,85.835,85.791,8.22749408]
[1773198631445,2.61003975,85.84,85.791,8.22749408]
[1773198631642,13.09603975,85.82,85.791,8.22749408]
[1773198631841,13.09603975,85.82,85.78,10.85772038]
[1773198632243,13.09603975,85.82,85.781,8.24768063]
[1773198633239,2.61003975,85.81,85.781,8.24768063]
[1773198634739,10.487,85.813,85.781,8.24768063]
[1773198635642,10.486,85.821,85.781,8.24768063]
[1773198637741,10.487,85.814,85.781,8.24768063]
[1773198643948,10.485,85.826,85.781,8.24768063]
[1773198644246,2.61003975,85.83,85.781,8.24768063]
[1773198644247,2.91187739,85.825,85.781,8.24768063]
[1773198644546,10.486,85.82,85.781,8.24768063]
[1773198644746,2.91187739,85.819,85.781,8.24768063]
[1773198644946,2.91187739,85.818,85.781,8.24768063]
[1773198645248,2.91187739,85.817,85.781,8.24768063]
[1773198645444,2.91187739,85.816,85.781,8.24768063]
[1773198645645,2.91187739,85.815,85.781,8.24768063]
[1773198645846,2.91187739,85.814,85.781,8.24768063]
[1773198646045,2.61003975,85.82,85.781,8.24768063]
[1773198646347,10.486,85.818,85.781,8.24768063]
[1773198646547,2.91191938,85.817,85.781,8.24768063]
[1773198646746,2.91191938,85.816,85.781,8.24768063]
[1773198647042,2.91191938,85.815,85.781,8.24768063]
[1773198647247,2.61003975,85.82,85.781,8.24768063]
[1773198647248,2.91191938,85.814,85.781,8.24768063]
[1773198647448,2.91191938,85.813,85.781,8.24768063]
[1773198647642,2.91191938,85.812,85.781,8.24768063]
[1773198647942,10.487,85.816,85.781,8.24768063]
[1773198648138,2.91192097,85.815,85.781,8.24768063]
[1773198648340,2.91192097,85.814,85.781,8.24768063]
[1773198648539,2.91192097,85.813,85.781,8.24768063]
[1773198648745,2.91192097,85.812,85.781,8.24768063]
[1773198648950,10.487,85.816,85.781,8.24768063]
[1773198649145,2.91192097,85.815,85.781,8.24768063]
[1773198649346,2.91192097,85.814,85.781,8.24768063]
[1773198649546,2.91192097,85.813,85.781,8.24768063]
[1773198649746,2.91192097,85.812,85.781,8.24768063]
[1773198649945,10.487,85.816,85.781,8.24768063]
[1773198650253,2.91192043,85.815,85.781,8.24768063]
[1773198650550,10.487,85.816,85.781,8.24768063]
[1773198650551,2.91192043,85.814,85.781,8.24768063]
[1773198650746,2.91192043,85.813,85.781,8.24768063]
[1773198650945,2.91192043,85.812,85.781,8.24768063]
[1773198651246,10.487,85.816,85.781,8.24768063]
[1773198651445,2.91192043,85.815,85.781,8.24768063]
[1773198651646,2.91192043,85.814,85.781,8.24768063]
[1773198651941,2.91192043,85.813,85.781,8.24768063]
[1773198652146,2.91192043,85.812,85.781,8.24768063]
[1773198652344,10.487,85.816,85.781,8.24768063]
[1773198652544,2.91192025,85.815,85.781,8.24768063]
[1773198652746,2.91192025,85.814,85.781,8.24768063]
[1773198652954,2.91192025,85.813,85.781,8.24768063]
[1773198653154,2.91192025,85.812,85.781,8.24768063]
[1773198653355,10.487,85.816,85.781,8.24768063]
[1773198653654,2.91192025,85.815,85.781,8.24768063]
[1773198653954,2.91192025,85.814,85.781,8.24768063]
[1773198654144,2.91192025,85.813,85.781,8.24768063]
[1773198654346,2.91192025,85.812,85.781,8.24768063]
[1773198654551,10.487,85.816,85.781,8.24768063]
[1773198654752,2.91192025,85.815,85.781,8.24768063]
[1773198654951,2.91192025,85.814,85.781,8.24768063]
[1773198655146,2.91192025,85.813,85.771,8.22269738]
[1773198655353,2.60677556,85.81,85.771,8.22269738]
[1773198655556,2.91192025,85.809,85.771,8.22269738]
[1773198655855,10.488,85.804,85.771,8.22269738]
[1773198656054,2.91192025,85.803,85.771,8.22269738]
[1773198656254,2.60677556,85.81,85.771,8.22269738]
[1773198656255,2.91192025,85.802,85.771,8.22269738]
[1773198656555,2.60677556,85.8,85.761,8.22269738]
[1773198656855,2.91235253,85.799,85.761,8.22269738]
[1773198657045,10.488,85.805,85.771,8.22269738]
[1773198657246,2.91230327,85.804,85.771,8.22269738]
[1773198657446,2.91230327,85.803,85.771,8.22269738]
[1773198657653,2.91230327,85.802,85.771,8.22269738]
[1773198657853,2.91230327,85.801,85.771,8.22269738]
[1773198658054,10.488,85.805,85.771,8.22269738]
[1773198658255,2.9123013,85.804,85.771,8.22269738]
[1773198658456,2.9123013,85.803,85.771,8.22269738]
[1773198658754,2.9123013,85.802,85.771,8.22269738]
[1773198658956,10.488,85.8,85.771,8.22269738]
[1773198659546,2.91235453,85.799,85.771,8.22269738]
[1773198659751,2.91235453,85.798,85.771,8.22269738]
[1773198659954,2.91235453,85.797,85.771,8.22269738]
[1773198660152,2.91231377,85.796,85.771,8.22269738]
[1773198660355,2.60677556,85.81,85.771,8.22269738]
[1773198660659,2.91231377,85.809,85.771,8.22269738]
[1773198660855,10.489,85.797,85.76,8.23632305]
[1773198661056,2.91231377,85.796,85.76,8.23632305]
[1773198661257,2.91231377,85.795,85.76,8.23632305]
[1773198661456,2.91231377,85.794,85.76,8.23632305]
[1773198661658,2.91231377,85.793,85.76,8.23632305]
[1773198661858,2.91231377,85.792,85.76,8.23632305]
[1773198662057,2.91231377,85.791,85.76,8.23632305]
[1773198662258,10.489,85.797,85.76,8.23632305]
[1773198662459,2.91259736,85.796,85.76,8.23632305]
[1773198662759,10.489,85.797,85.76,8.23632305]
[1773198662760,2.91259736,85.795,85.761,8.23624705]
[1773198662955,2.91259736,85.794,85.761,8.23624705]
[1773198663151,10.489,85.797,85.761,8.23624705]
[1773198663152,2.91259736,85.793,85.761,8.23624705]
[1773198663356,2.91259736,85.792,85.761,8.23624705]
[1773198663557,10.489,85.797,85.761,8.23624705]
[1773198663753,2.91251465,85.796,85.761,8.23624705]
[1773198663954,2.91251465,85.795,85.761,8.23624705]
[1773198664154,2.91251465,85.794,85.761,8.23624705]
[1773198664459,2.91251465,85.793,85.761,8.23624705]
[1773198664658,2.91251465,85.792,85.761,8.23624705]
[1773198664859,10.489,85.797,85.761,8.23624705]
[1773198665060,2.91251463,85.796,85.761,8.23624705]
[1773198665258,2.91251463,85.795,85.761,8.23624705]
[1773198665460,2.91251463,85.794,85.761,8.23624705]
[1773198665659,2.91251463,85.793,85.761,8.23624705]
[1773198665860,2.91251463,85.792,85.761,8.23624705]
[1773198666061,2.91251463,85.791,85.761,8.23624705]
[1773198666264,2.91251463,85.79,85.761,8.23624705]
[1773198666560,10.489,85.797,85.761,8.23624705]
[1773198666761,2.91259877,85.796,85.761,8.23624705]
[1773198666961,2.91259877,85.795,85.761,8.23624705]
[1773198667164,2.91259877,85.794,85.761,8.23624705]
[1773198667462,10.489,85.797,85.761,8.23624705]
[1773198667463,2.91259877,85.793,85.761,8.23624705]
[1773198667663,2.91259877,85.792,85.761,8.23624705]
[1773198667864,2.91259877,85.791,85.761,8.23624705]
[1773198668057,2.91259877,85.79,85.761,8.23624705]
[1773198668259,2.91259877,85.789,85.761,8.23624705]
[1773198668459,10.489,85.797,85.761,8.23624705]
[1773198668460,2.91259877,85.788,85.761,8.23624705]
[1773198668761,10.489,85.797,85.761,8.23624705]
[1773198668955,10.489,85.795,85.761,8.23624705]
[1773198669265,35.38305312,85.839,85.711,34.98]
[1773198669266,2.60677556,85.77,85.731,8.24095448]
[1773198669454,2.91279818,85.769,85.731,8.24095448]
[1773198669658,2.91279818,85.768,85.731,8.24095448]
[1773198669959,2.60677556,85.76,85.71,2.60677556]
[1773198670159,2.91279818,85.759,85.71,2.60677556]
[1773198670460,2.91279818,85.758,85.71,2.60677556]
[1773198670652,2.91279818,85.757,85.71,2.60677556]
[1773198670857,2.91279818,85.756,85.71,2.60677556]
[1773198671060,2.91279818,85.755,85.71,2.60677556]
[1773198671262,2.60677556,85.76,85.71,2.60677556]
[1773198671463,10.494,85.757,85.71,2.60677556]
[1773198671657,2.60677556,85.75,85.71,2.60677556]